Cogmind - Beta 10.2 @@@ ROGUE MODE // 2021.05.06 @ 22:30:04 // Halloween2020/ForbiddenLore Player: Valguris Result: Destroyed by G-73 Enforcer with Phase Gun Performance ------------- Evolutions (6) 3000 Regions Visited (21) 4200 Robots Destroyed (407) 2035 Value Destroyed (18590) 18590 Prototype IDs (105) 2100 Alien Tech Used (0) 0 Bonus (11860) 11860 TOTAL SCORE: 41785 Bonus ------- Triggered High Security 1500 High Alert Combat Kills 11679 Follower Combat Kills 3825 Network Hubs Disabled 800 Aligned with FarCom 300 Met Imprinter 300 Was Imprinted 300 Built Enhanced Grunts 300 A7 Reached Mainframe 300 Met R17 at Cetus 500 Friendly Fire -7944 Cogmind --------- Core Integrity 0/1150 Matter 295/300 Energy 98/100 System Corruption 4% Temperature Cool (0) Movement Core (50) Location -4/Factory Parts ------- > --- POWER (3) -------- (None) > --- PROPULSION (4) --- (None) > --- UTILITY (9) ------ (None) > --- WEAPON (3) ------- (None) > --- INVENTORY (4) ---- Light Ion Engine Myomer Leg Improved Medium Armor Plating Peak State ------------ > --- POWER ------------ Light Antimatter Reactor Quantum Reactor Quantum Reactor > --- PROPULSION ------- Improved Treads Heavy Treads > --- UTILITY ---------- Experimental Heat Sink Humpback Humpback Experimental Signal Interpreter Improved Transmission Jammer Experimental Phase Shifter Improved Powered Armor > --- WEAPON ----------- EMDS > --- INVENTORY -------- Nuclear Core Quantum Reactor Medium Treads Medium Treads Armored Huge Wheel Advanced Cooling System High-capacity Storage Unit High-capacity Storage Unit High-capacity Storage Unit High-capacity Storage Unit High-capacity Storage Unit Humpback Zionite Biocell High-capacity Matter Pod Improved Armor Integrity Analyzer Experimental Armor Integrity Analyzer Damper Plating Damper Plating Advanced Force Field Advanced Hacking Suite Long-range Proton Cannon EMDS Neutron Cannon KE Penetrator Hypervelocity Gauss Cannon Hypervelocity Mass Driver Guided EMP Blaster Heavy Shock Bomb Launcher Heavy Proton Missile Launcher Precision Rocket Launcher Scatter Rocket Array Tiamat Missile Launcher Improved Remote Datajack Plasma Cutter CR-A16's Pointy Stick [Rating: 119] Favorites ----------- Power Quantum Reactor Engine Improved Deuterium Engine Power Core Light Nuclear Core Reactor Quantum Reactor Propulsion Armored Huge Wheel Treads Light Treads Leg Myomer Leg Wheel Armored Huge Wheel Flight Unit Cooled Field Propulsion Drive Utility High-capacity Storage Unit Device Experimental Sensor Array Storage High-capacity Storage Unit Processor Advanced Signal Interpreter Hackware Advanced Hacking Suite Protection Damper Plating Weapon Advanced EMP Blaster Energy Gun Spread Laser Energy Cannon Heavy Particle Cannon Ballistic Gun Coil Gun Ballistic Cannon Advanced Assault Cannon Launcher Advanced EMP Blaster Special Weapon Remote Datajack Slashing Weapon Scythe Piercing Weapon CR-A16's Pointy Stick Special Melee Weapon Datajack Build | -11 -10 -10 -10 -9 -8 -7 -7 -7 -7 -6 -6 -6 -6 -6 -6 -6 -6 -5 -5 -5 -4 ------- Run | Scr Mat Min Exi Min Mat Fac Low Low Zio Pro Fac Was Fac Ext Cet Arc Hub Fac Was Fac Fac Slots Evolved 12 | . . . . . 4 2 . . . . 2 . . . . . . 2 . . 2 Power 2 | . . . . . . 2 . . . . . . . . . . . . . . . Propulsion 2 | . . . . . . . . . . . . . . . . . . 1 . . 1 Utility 7 | . . . . . 4 . . . . . 2 . . . . . . 1 . . . Weapon 1 | . . . . . . . . . . . . . . . . . . . . . 1 Parts Attached 512 | 6 5 5 4 9 33 11 11 8 2 25 14 16 22 34 19 2 107 33 8 99 39 Power 32 | 1 . 1 . 1 1 1 1 1 . 1 . . 1 5 3 . 4 1 . 6 4 Engine 9 | 1 . 1 . 1 1 . . . . 1 . . . 3 . . . . . 1 . Core 10 | . . . . . . 1 1 1 . . . . 1 2 . . . . . 4 . Reactor 13 | . . . . . . . . . . . . . . . 3 . 4 1 . 1 4 Propulsion 54 | 2 . . . . 2 1 1 1 . . . . . . 2 . 13 4 . 8 20 Treads 15 | 2 . . . . . . . . . . . . . . 1 . 1 4 . 4 3 Leg 20 | . . . . . . . . . . . . . . . . . 3 . . 1 16 Wheel 18 | . . . . . 2 1 1 1 . . . . . . 1 . 9 . . 3 . Hover . | . . . . . . . . . . . . . . . . . . . . . . Flight 1 | . . . . . . . . . . . . . . . . . . . . . 1 Utility 206 | 1 3 1 1 . 7 8 4 6 2 12 9 8 4 15 8 . 47 18 2 41 9 Device 130 | . . . . . 4 5 2 6 2 12 7 6 3 10 4 . 33 12 1 18 5 Storage 27 | 1 1 1 1 . 1 2 1 . . . . 1 . 2 . . 4 2 . 9 1 Processor 7 | . . . . . . . 1 . . . . 1 . . 1 . . 1 . 2 1 Hackware 3 | . . . . . 1 1 . . . . . . . . . . . . . 1 . Protection 39 | . 2 . . . 1 . . . . . 2 . 1 3 3 . 10 3 1 11 2 Artifact . | . . . . . . . . . . . . . . . . . . . . . . Weapon 220 | 2 2 3 3 8 23 1 5 . . 12 5 8 17 14 6 2 43 10 6 44 6 Energy Gun 13 | . 2 1 . 2 6 . . . . . . . . . . . . . . . 2 Energy Cannon 55 | . . . 1 . 4 . . . . 2 . 3 3 4 1 . 5 7 2 23 . Ballistic Gun 15 | 2 . . . . 4 . 2 . . 2 . . 1 . . . . . . . 4 Ballistic Cannon 24 | . . . . 1 1 . . . . 2 . 2 2 . . . 11 . 3 2 . Launcher 76 | . . 2 1 4 5 . 3 . . 5 3 2 7 3 3 1 21 . . 16 . Special Weapon 16 | . . . . . . . . . . 1 2 . 1 5 1 1 1 2 . 2 . Impact Weapon . | . . . . . . . . . . . . . . . . . . . . . . Slashing Weapon 4 | . . . . 1 2 1 . . . . . . . . . . . . . . . Piercing Weapon 15 | . . . . . . . . . . . . 1 3 2 1 . 5 1 1 1 . Special Melee Weapon 2 | . . . 1 . 1 . . . . . . . . . . . . . . . . Unidentified Prototypes 16 | . . . . . 2 . . . . 1 . . . 1 2 . 1 2 . 3 4 Parts Lost 61 | . . 1 . 1 2 . 1 . . . . . . 1 . . 14 5 . 31 5 Power 12 | . . . . . . . . . . . . . . 1 . . 3 1 . 7 . Propulsion 15 | . . . . . . . 1 . . . . . . . . . 2 1 . 8 3 Utility 17 | . . . . . . . . . . . . . . . . . 3 3 . 9 2 Weapon 17 | . . 1 . 1 2 . . . . . . . . . . . 6 . . 7 . Highest Loss Streak 17 | . . 1 . 1 1 . 1 . . . . . . 1 . . 6 3 . 17 2 Average Slot Usage (%) 82 | . 99 99 87 85 80 81 83 84 84 84 86 86 85 80 79 80 79 80 87 76 37 Engine 8 | . 14 14 14 14 9 7 7 7 7 14 13 13 13 18 5 . . . . . . Core 4 | . . . . . . 7 14 15 15 7 6 6 6 1 . . . . . . . Reactor 5 | . . . . . . . . . . . . . . . 12 20 19 16 17 14 4 Treads 6 | . 28 28 28 28 10 . . . . . . . . . . . . 10 11 10 1 Wheel 4 | . . . . . 7 15 7 7 7 7 6 6 6 6 6 6 7 1 . . . Device 9 | . . . . . 17 14 7 7 7 7 18 13 11 12 3 6 6 14 20 14 4 Storage 19 | . 14 24 16 14 17 20 23 23 23 23 20 22 26 21 20 20 19 17 23 16 1 Processor 5 | . . . . . . . 6 7 7 7 6 9 6 6 12 13 8 . . 4 . Protection 1 | . 13 3 . . . . . . . . 1 . 1 . 2 . 4 6 6 3 2 Energy Gun 2 | . 25 14 13 6 7 . . . . . . . . . . . . . . . 2 Energy Cannon 1 | . . . . 2 3 . . . . . . 9 1 3 . . . 5 4 4 . Launcher 7 | . . 13 1 10 . 14 14 15 15 14 12 3 8 5 9 7 8 . . 1 . Naked Turns 136 | . . . . . . . . . . . . . . . . . . . . 30 106 Heaviest Build 273 | 9 32 41 89 104 188 251 180 180 177 188 213 203 221 273 264 264 272 271 208 270 144 Greatest Support 98 | 40 40 40 40 40 40 32 32 28 28 28 28 28 28 28 80 44 32 93 93 98 98 Greatest Overweight (x) 22 | . . 1 2 2 11 7 10 6 6 6 7 7 7 9 9 5 22 16 2 7 1 Average Overweight (x) 4 | . . . 1 2 4 5 6 6 6 6 6 6 7 7 8 5 8 5 1 1 . Largest Inventory Capacity 66 | 6 10 16 24 24 44 60 40 40 40 40 40 46 46 66 52 52 52 40 30 64 24 Average Capacity 38 | 5 8 14 22 24 43 41 40 40 40 40 40 42 46 51 52 52 42 35 30 37 10 Most Carried 52 | 6 10 16 24 24 44 44 40 40 40 40 40 46 46 52 52 52 52 40 30 44 15 Average Carried 37 | 3 7 14 20 23 37 41 39 39 39 39 39 42 45 50 50 52 41 32 29 36 5 Final Capacity 52 | 6 10 16 24 24 44 40 40 40 40 40 40 46 46 52 52 52 40 30 30 4 4 Final Carried 52 | 6 10 16 24 23 44 40 40 40 40 40 40 46 46 51 52 52 36 30 30 4 3 Class Distribution -------------------- 82% | Hauler-Mutant 8% | Mutant 7% | Scavenger-Mutant Dominant Class ---------------- Mutant | -10/Materials Mutant | -10/Mines Hauler-Mutant | -10/Exiles Hauler-Mutant | -9/Mines Hauler-Mutant | -8/Materials Hauler-Mutant | -7/Factory Hauler-Mutant | -7/Lower Caves Hauler-Mutant | -7/Lower Caves Hauler-Mutant | -7/Zion Hauler-Mutant | -6/Proximity Caves Hauler-Mutant | -6/Factory Hauler-Mutant | -6/Waste Hauler-Mutant | -6/Factory Hauler-Mutant | -6/Extension Hauler-Mutant | -6/Cetus Hauler-Mutant | -6/Archives Hauler-Mutant | -6/Hub_04(d) Hauler-Mutant | -5/Factory Scavenger-Mutant | -5/Waste Hauler-Mutant | -5/Factory Scavenger-Bomber | -4/Factory Resources | -11 -10 -10 -10 -9 -8 -7 -7 -7 -7 -6 -6 -6 -6 -6 -6 -6 -6 -5 -5 -5 -4 ----------- Run | Scr Mat Min Exi Min Mat Fac Low Low Zio Pro Fac Was Fac Ext Cet Arc Hub Fac Was Fac Fac Matter Collected 10699 | 245 55 115 30 243 513 113 223 174 20 464 160 222 495 609 270 30 2448 688 200 2817 565 Remotely 422 | . . . . . . . . . . . . . . . . . 422 . . . . Salvage Created 22974 | . 251 99 . 41 1470 434 252 461 . 729 478 1050 801 648 567 86 5070 1588 328 7794 827 Parts 891 | . 14 11 . 11 72 29 14 16 . 25 14 7 46 32 24 5 216 55 9 258 33 Haulers Intercepted 22 | . 1 . . . 6 3 . . . . 1 . 2 . . . 3 1 . 5 . Recyclers Shooed 4 | . . . . . 1 2 . . . . . . . . . . . 1 . . . Parts Field Recycled . | . . . . . . . . . . . . . . . . . . . . . . Retrieved Matter . | . . . . . . . . . . . . . . . . . . . . . . Parts Self-Destructed 17 | . . . . . . . 6 1 . 10 . . . . . . . . . . . Prevented 28 | . . . . . . . 6 8 . 14 . . . . . . . . . . . Kills | -11 -10 -10 -10 -9 -8 -7 -7 -7 -7 -6 -6 -6 -6 -6 -6 -6 -6 -5 -5 -5 -4 ------- Run | Scr Mat Min Exi Min Mat Fac Low Low Zio Pro Fac Was Fac Ext Cet Arc Hub Fac Was Fac Fac Combat Hostiles Destroyed 311 | . 6 7 . 8 20 5 6 9 . 11 3 4 4 3 8 1 74 18 1 111 12 Melee 5 | . . . . . 4 . . . . . . . . . . . 1 . . . . Guns 28 | . 6 . . 1 7 . 2 . . . . . . . . . . . . . 12 Cannons 73 | . . . . . 4 . . . . 1 . 3 . . . . 17 9 1 38 . AOE 135 | . . 7 . 7 4 4 4 8 . 8 1 . 4 3 5 . 41 2 . 37 . Classes Destroyed 24 | . 3 2 . 1 4 2 . 2 . 2 1 1 . 1 . . 4 . . 1 . Worker 18 | . . 1 . . 3 2 . . . . 1 . 4 2 . . 2 2 . 1 . Builder 11 | . . . . . . 1 . . . . 1 . 3 . . . 2 2 . 1 1 Tunneler 1 | . . . . . . . . . . . . . . . . . . . . 1 . Hauler 22 | . 1 . . . 6 3 . . . . 1 . 2 . . . 3 1 . 5 . Recycler 8 | . . . . . 2 1 . . . . . . . 1 . . . 2 . 2 . Mechanic 4 | . . . . . . 1 . . . . . . . . . . . . . 3 . Operator 3 | . 1 . . . . . . . . . . . . 1 . . 1 . . . . Watcher 13 | . . . . . 2 . . . . . . . . . 2 . 3 1 . 5 . Swarmer 44 | . . 6 . 7 4 . 3 3 . 1 . . . . 5 . 3 . . 10 2 Saboteur 3 | . . . . . . . . . . . . . . . . . 2 . . 1 . Grunt 132 | . 6 1 . . 12 4 3 5 . 7 1 . . 1 . . 29 6 . 49 8 Brawler 12 | . . . . . . . . . . . 1 . . . . . 3 1 . 6 1 Duelist 17 | . . . . . . . . 1 . 1 1 . . . . . 1 2 . 10 1 Protector 9 | . . . . . . . . . . . . . . . . . 5 . . 4 . Sentry 19 | . . . . . 3 1 . . . 1 . . . . . 1 9 4 . . . Demolisher 4 | . . . . 1 . . . . . . . . . . . . 3 . . . . Specialist 1 | . . . . . . . . . . . . . . . . . 1 . . . . Hunter 28 | . . . . . 1 . . . . . . . 4 2 . . 3 1 . 17 . Programmer 22 | . . . . . . . . . . 1 . . . . . . 3 4 . 14 . Behemoth 1 | . . . . . . . . . . . . . . . . . 1 . . . . Compactor 5 | . . . . . . . . . . . . 4 . . . . . . 1 . . Cetus Guard 3 | . . . . . . . . . . . . . . . 3 . . . . . . Lightning 11 | . . . . . . . . . . . . . . . . . 11 . . . . Z-Courier 4 | . . . . . . . . . . . 1 . 1 1 . . . . . 1 . Z-Light 1 | . . . . . . . . . . . . . . 1 . . . . . . . Samaritan 1 | . . . . . . . . 1 . . . . . . . . . . . . . Surgeon 1 | . . . . . . . . . . . . . . . . . . . . 1 . Thug 3 | . . . . . . . . . . . . . 2 . . . . . . 1 . Savage 2 | . . . . . . . . . . . . . 1 . 1 . . . . . . Martyr 4 | . . . . . . . . . . . . 2 . . . . . . 2 . . Guerrilla 3 | . . . . . . . . . . . . . . 3 . . . . . . . Mutant 1 | . . . . . . . . . . 1 . . . . . . . . . . . Best Kill Streak 22 | . 3 3 . 3 4 11 6 4 . 4 4 3 6 4 5 1 18 11 1 22 4 Combat Bots Only 19 | . 3 3 . 3 4 4 6 4 . 4 3 3 2 2 5 1 18 8 1 19 4 Max Kills in Single Turn 7 | . 1 2 . 3 2 3 4 2 . 2 1 1 5 4 4 1 7 3 1 4 2 Gunslinging 1 | . . . . . 1 . . . . . . . . . . . . . . . . Exploded 7 | . . 2 . 3 2 1 4 2 . 2 1 . 2 1 4 . 7 1 . 4 . Melee 1 | . . . . . 1 . . . . . . . . . . . 1 . . . . Uniques/NPCs Destroyed 1 | . . . . . . . . . . . . . . . 1 . . . . . . A7 (-6/Cetus) Combat | -11 -10 -10 -10 -9 -8 -7 -7 -7 -7 -6 -6 -6 -6 -6 -6 -6 -6 -5 -5 -5 -4 -------- Run | Scr Mat Min Exi Min Mat Fac Low Low Zio Pro Fac Was Fac Ext Cet Arc Hub Fac Was Fac Fac Damage Taken 19609 | . 103 108 . 280 807 209 330 130 . 202 127 . 152 442 66 . 4907 1199 . 7331 3216 Core 2554 | . . 9 . 30 78 . 20 9 . 46 . . . 24 . . 194 67 . 917 1160 Absorbed by Shields 909 | . . . . . 207 43 67 44 . 45 86 . . 50 28 . . 339 . . . Reduced by Siege Mode 28 | . . . . . . . . . . . . . . . . . . . . 28 . Core Remaining (%) 72 | 100 . . . 84 85 . . . . 89 . . . . . . 74 . . 1 . Volleys Fired 738 | . 12 7 1 14 73 7 6 9 . 30 9 41 28 60 18 5 117 62 9 202 28 Largest 3 | . 2 2 1 2 2 2 2 2 . 2 2 2 2 2 2 2 2 2 2 2 3 Hottest 196 | . 130 95 60 130 125 72 72 72 . 150 72 150 150 75 75 72 150 150 123 196 176 Shots Fired 1109 | . 24 8 1 17 136 14 12 18 . 48 14 75 38 61 24 8 190 70 17 250 84 Gun 221 | . 24 1 . 4 91 . 10 . . 4 . . 3 . . . . . . . 84 Cannon 513 | . . . 1 3 42 . . . . 22 . 75 16 4 8 . 99 69 17 157 . Launcher 323 | . . 7 . 10 3 14 2 18 . 20 11 . 15 26 15 6 90 . . 86 . Special 52 | . . . . . . . . . . 2 3 . 4 31 1 2 1 1 . 7 . Kinetic 233 | . . . . 2 32 . 10 . . 18 . 7 9 . . . 87 . 16 . 52 Thermal 250 | . 24 1 1 5 36 . . . . 8 2 68 14 7 8 . 12 19 1 44 . Explosive 31 | . . 7 . 10 3 . . . . . . . . . . . 2 . . 9 . Electromagnetic 526 | . . . . . 65 14 2 18 . 20 11 . 15 26 15 6 88 50 . 196 . Phasic 32 | . . . . . . . . . . . . . . . . . . . . . 32 Robot Hit Streak 27 | . 10 3 . 8 20 1 4 5 . 11 11 12 6 11 14 16 27 15 5 10 9 Robot Miss Streak 6 | . 5 3 . 2 4 1 3 . . 2 . 4 2 2 . . 6 4 5 6 5 Penetration Max 1 | . . . . . . . . . . . . . 1 . . . 1 1 1 1 1 Secondary Targets 8 | . 1 . . . 2 . 1 . . . . . . . . . . . . . 4 Max Gunslinging Chain 1 | . 1 . . . 1 . 1 . . . . . . . . . . . . . 1 Shots Hit Robots 680 | . 20 5 4 6 104 2 9 5 . 19 10 53 16 29 11 2 106 52 12 159 56 Core Hits 729 | . 29 12 . 15 59 16 11 13 . 19 14 19 26 29 26 4 155 31 4 221 26 Critical Hits 65 | . . . . . 2 . . . . . 1 1 . . . . 24 10 10 15 2 Critical Kills 27 | . . . . . 1 . . . . . 1 1 . . . . 15 2 1 5 1 Critical Parts Destroyed 31 | . . . . . 1 . . . . . . . . . . . 9 7 3 10 1 Melee Attacks 83 | . . . 4 1 12 2 . . . . . 4 12 1 8 . 33 1 4 1 . Impact . | . . . . . . . . . . . . . . . . . . . . . . Slashing 12 | . . . . 1 9 2 . . . . . . . . . . . . . . . Piercing 64 | . . . . . . . . . . . . 4 12 1 8 . 33 1 4 1 . Sneak Attacks 32 | . . . 4 . 3 1 . . . . . 4 5 1 8 . 2 . 4 . . Combat Hostiles . | . . . . . . . . . . . . . . . . . . . . . . Follow-up Attacks . | . . . . . . . . . . . . . . . . . . . . . . Damage Inflicted 47414 | . 271 522 . 638 2012 1739 403 911 . 1458 721 1769 1844 1909 1942 221 9535 2834 702 16202 1781 Guns 3209 | . 264 8 . 41 819 . 135 . . 98 . . 65 . . . . . . . 1779 Cannons 12126 | . . . . 30 476 . . . . 199 . 1375 150 . . . 866 2243 318 6469 . Explosions 28830 | . . 509 . 563 434 1621 268 911 . 1161 698 . 1073 1783 1342 221 8074 591 . 9581 . Melee 2957 | . . . . . 242 118 . . . . . 394 495 94 600 . 595 . 384 35 . Ramming 129 | . 7 5 . 4 41 . . . . . . . 18 . . . . . . 52 2 Kinetic 2647 | . . . . 30 318 . 135 . . 204 . . 65 . . . 748 . 318 . 829 Thermal 8938 | . 264 8 . 41 432 103 89 128 . 169 105 1375 424 918 166 . 1756 680 . 2280 . Explosive 5477 | . . 509 . 563 384 982 . . . . . . . . . . 424 439 . 2176 . Electromagnetic 26316 | . . . . . 595 536 179 783 . 1085 616 . 842 897 1176 221 6012 1715 . 11659 . Impact . | . . . . . . . . . . . . . . . . . . . . . . Slashing 360 | . . . . . 242 118 . . . . . . . . . . . . . . . Piercing 2597 | . . . . . . . . . . . . 394 495 94 600 . 595 . 384 35 . Phasic 950 | . . . . . . . . . . . . . . . . . . . . . 950 Highest Corruption 12 | . . . . . . . . 1 1 1 1 1 2 2 . . 12 . . 12 4 Average Corruption 2 | . . . . . . . . 1 1 1 1 1 1 1 . . 6 . . 3 3 Corruption Purged 3 | . . . . . . . . . . . . . . 2 . . 1 . . . . Effects 94 | . . . . . . . . 3 1 6 1 . 7 17 . . 49 . . 9 1 Message Errors 31 | . . . . . . . . 1 . 5 1 . 3 5 . . 13 . . 2 1 Matter Fused 8 | . . . . . . . . . . . . . . . . . 8 . . . . Heat Flow Errors 6 | . . . . . . . . . . . . . . 4 . . 2 . . . . Energy Discharges 11 | . . . . . . . . 1 . 1 . . 1 4 . . 3 . . 1 . Parts Rejected 2 | . . . . . . . . . . . . . . . . . 2 . . . . Data Loss (minor) 17 | . . . . . . . . 1 1 . . . 2 4 . . 6 . . 3 . Misdirections 1 | . . . . . . . . . . . . . . . . . . . . 1 . Targeting Errors 16 | . . . . . . . . . . . . . 1 . . . 13 . . 2 . Weapon Failures 2 | . . . . . . . . . . . . . . . . . 2 . . . . Overload Shots . | . . . . . . . . . . . . . . . . . . . . . . Overflow Damage 1709 | . . 2 . . 69 240 1 37 . 69 43 30 109 66 93 . 171 65 124 590 . Projectiles 329 | . . . . . . . . . . 29 . . . . . . 11 31 . 258 . Explosions 960 | . . 2 . . 69 152 1 37 . 40 43 . 21 66 31 . 150 34 . 314 . Melee 420 | . . . . . . 88 . . . . . 30 88 . 62 . 10 . 124 18 . Knockbacks 24 | . . . . . . . . . . 1 . . . . . . 20 . 3 . . Impact . | . . . . . . . . . . . . . . . . . . . . . . Kinetic 22 | . . . . . . . . . . 1 . . . . . . 18 . 3 . . Secondary 2 | . . . . . . . . . . . . . . . . . 2 . . . . Self-Inflicted Damage 2021 | . . 23 . 27 39 145 90 135 . 49 100 . 36 281 13 . 573 119 . 391 . Shots 100 | . . 2 . 1 1 4 3 7 . 2 4 . 1 10 1 . 26 2 . 36 . Rammed 22 | . 5 3 . 1 7 . . . . . . . 1 . . . . . . 5 . Targets Rammed 25 | . 6 3 . 1 8 . . . . . . . 1 . . . . . . 5 1 Kicked 1 | . . . . . . . . . . . . . . . . . . . . . 1 Crushed 2 | . 1 . . . 1 . . . . . . . . . . . . . . . . Highest Temperature 384 | . 312 27 20 75 45 10 . 99 . 240 . 120 105 218 282 102 384 360 18 369 38 Average Temperature 74 | . 123 15 10 27 8 10 . 48 . 75 . 51 34 41 70 37 104 142 9 91 13 Received Heat Transfer 2743 | . 54 12 . 18 348 22 18 . . 38 29 . . 51 . . 450 179 . 873 651 Effects 13 | . . . . . . . . . . . . . . . 1 . 2 3 . 7 . Shutdowns 2 | . . . . . . . . . . . . . . . . . 1 1 . . . Energy Bleed 2 | . . . . . . . . . . . . . . . . . 1 . . 1 . Interference 6 | . . . . . . . . . . . . . . . 1 . . . . 5 . Matter Decay 2 | . . . . . . . . . . . . . . . . . . 1 . 1 . Damage (minor) 1 | . . . . . . . . . . . . . . . . . . 1 . . . Siege Activations 1 | . . . . . . . . . . . . . . . . . . . . 1 . Total Turns 25 | . . . . . . . . . . . . . . . . . . . . 25 . Longest Duration 25 | . . . . . . . . . . . . . . . . . . . . 25 . Robots Corrupted 82 | . . . . . 1 1 . 1 . 3 2 . 1 . 3 1 17 9 . 43 . Combat Hostiles 69 | . . . . . 1 1 . 1 . 2 2 . . . 3 1 15 7 . 36 . Parts Fried 205 | . . . . . 7 1 . 6 . 10 3 . 5 3 5 1 36 19 . 109 . Impact Corruptions . | . . . . . . . . . . . . . . . . . . . . . . Robots Melted 1 | . . . . . . . . . . . . 1 . . . . . . . . . Combat Hostiles 1 | . . . . . . . . . . . . 1 . . . . . . . . . Parts Melted 4 | . . . . . 1 . . . . . . . 1 1 . . . . . 1 . Heat Transferred 9898 | . 335 10 . 50 739 100 100 100 . 211 174 2035 620 861 100 . 1626 681 . 2156 . Parts Sabotaged 23 | . . . . . . . . . . . . . . . . . 1 . . 8 14 Parts Stolen . | . . . . . . . . . . . . . . . . . . . . . . Parts Stripped . | . . . . . . . . . . . . . . . . . . . . . . Power Chain Reactions 65 | . . . . . 1 1 1 3 . 1 2 . 6 10 4 . 24 1 . 11 . Missiles Intercepted . | . . . . . . . . . . . . . . . . . . . . . . Alert | -11 -10 -10 -10 -9 -8 -7 -7 -7 -7 -6 -6 -6 -6 -6 -6 -6 -6 -5 -5 -5 -4 ------- Run | Scr Mat Min Exi Min Mat Fac Low Low Zio Pro Fac Was Fac Ext Cet Arc Hub Fac Was Fac Fac Peak Influence 3510 | . 130 292 . 138 547 940 . . . . 502 179 534 1136 1373 737 3040 2006 814 3510 2534 Initial 1707 | . . 44 . . 34 155 . . . . . 175 . 251 636 549 95 1474 702 429 1707 Average 686 | . 71 115 . 52 233 438 . . . . 40 42 262 460 1057 521 1167 1616 704 1568 2078 Maximum Alert Level 5 | . . 1 . . 2 3 . . . . 2 . 2 4 4 3 5 5 3 5 5 Low Security (%) 30 | 100 100 82 . 100 35 23 . . . . 92 100 41 2 . . 6 . . . . Level 1 19 | . . 17 . . 52 40 . . . . 3 . 51 61 . 40 . . . . . Level 2 14 | . . . . . 12 22 . . . . 4 . 6 15 5 31 31 . 48 13 . Level 3 12 | . . . . . . 13 . . . . . . . 17 40 27 16 . 51 22 . Level 4 8 | . . . . . . . . . . . . . . 2 53 . 10 65 . 20 . Level 5 7 | . . . . . . . . . . . . . . . . . 25 34 . 19 20 High Security 6 | . . . . . . . . . . . . . . . . . 8 . . 23 79 Max Security . | . . . . . . . . . . . . . . . . . . . . . . Squads Dispatched 104 | . 2 . . 1 4 4 . . . . 1 . 6 3 . . 27 7 . 35 14 Investigation 6 | . 1 . . 1 2 1 . . . . . . 1 . . . . . . . . Extermination 9 | . . . . . . 1 . . . . . . 2 . . . 3 1 . 2 . Reinforcement 20 | . 1 . . . 2 2 . . . . . . 3 3 . . 5 1 . 3 . Assault 61 | . . . . . . . . . . . 1 . . . . . 14 2 . 30 14 Garrison 8 | . . . . . . . . . . . . . . . . . 5 3 . . . Intercept . | . . . . . . . . . . . . . . . . . . . . . . Construction Impeded 1 | . . . . . . . . . . . . . . 1 . . . . . . . Haulers Reinforced 9 | . . . . . . 1 . . . . . . 3 . . . 2 1 . 2 . Stealth | -11 -10 -10 -10 -9 -8 -7 -7 -7 -7 -6 -6 -6 -6 -6 -6 -6 -6 -5 -5 -5 -4 --------- Run | Scr Mat Min Exi Min Mat Fac Low Low Zio Pro Fac Was Fac Ext Cet Arc Hub Fac Was Fac Fac Distress Signals 15 | . 2 . . . 3 . . 1 . . . . 1 2 2 1 2 . . 1 . Communications Jammed 21 | . . . . . . . . . . . . . . 1 . . . . . 20 . Distress Signals 21 | . . . . . . . . . . . . . . 1 . . . . . 20 . Times Spotted 589 | . 9 11 . 16 37 6 6 9 . 12 4 6 12 31 17 3 99 25 3 181 102 Peak Tracking Total 34 | . 3 3 9 4 6 3 6 4 . 4 3 4 4 5 5 1 17 10 4 19 34 Tactical Retreats 32 | . . . . 1 3 1 . . . 2 . . 1 2 . . 5 1 1 7 8 Traps | -11 -10 -10 -10 -9 -8 -7 -7 -7 -7 -6 -6 -6 -6 -6 -6 -6 -6 -5 -5 -5 -4 ------- Run | Scr Mat Min Exi Min Mat Fac Low Low Zio Pro Fac Was Fac Ext Cet Arc Hub Fac Was Fac Fac Traps Triggered 12 | . . . . . . . . . . . 2 . 4 1 . . 1 1 . 2 1 Indirectly 3 | . . . . . . . . . . . . . 2 . . . . . . 1 . Trap Hack Attempts 18 | . . . . . 18 . . . . . . . . . . . . . . . . Triggered . | . . . . . . . . . . . . . . . . . . . . . . Disarmed 2 | . . . . . 2 . . . . . . . . . . . . . . . . Reprogrammed . | . . . . . . . . . . . . . . . . . . . . . . Reused . | . . . . . . . . . . . . . . . . . . . . . . Traps Extracted . | . . . . . . . . . . . . . . . . . . . . . . Installed . | . . . . . . . . . . . . . . . . . . . . . . Triggered 1 | . . . . . . . . 1 . . . . . . . . . . . . . Machines | -11 -10 -10 -10 -9 -8 -7 -7 -7 -7 -6 -6 -6 -6 -6 -6 -6 -6 -5 -5 -5 -4 ---------- Run | Scr Mat Min Exi Min Mat Fac Low Low Zio Pro Fac Was Fac Ext Cet Arc Hub Fac Was Fac Fac Machines Disabled 112 | . . . 1 2 3 18 . . . . 2 . 8 15 3 3 24 10 . 18 5 Max in Single Turn 8 | . . . 1 1 2 6 . . . . 2 . 4 4 2 1 8 3 . 3 2 Garrison Access 5 | . . . . . 1 1 . . . . 1 . . . . . 1 . . 1 . Network Hub 4 | . . . . . . . . . . . . . . . . . 4 . . . . Energy Cycler 1 | . . . . . . . . . . . . . . 1 . . . . . . . Machines Sabotaged . | . . . . . . . . . . . . . . . . . . . . . . Garrisons Compromised . | . . . . . . . . . . . . . . . . . . . . . . Overloaded Fab Kills . | . . . . . . . . . . . . . . . . . . . . . . Fab Network Shutdowns . | . . . . . . . . . . . . . . . . . . . . . . Hacking | -11 -10 -10 -10 -9 -8 -7 -7 -7 -7 -6 -6 -6 -6 -6 -6 -6 -6 -5 -5 -5 -4 --------- Run | Scr Mat Min Exi Min Mat Fac Low Low Zio Pro Fac Was Fac Ext Cet Arc Hub Fac Was Fac Fac Machines Accessed 37 | . 3 . 2 . 10 4 2 3 . . 4 . 2 . . . . 2 . 5 . Terminals 11 | . 2 . . . 6 3 . . . . . . . . . . . . . . . Fabricators 7 | . . . . . . . . . . . 3 . 1 . . . . 1 . 2 . Repair Stations 3 | . . . . . . . . . . . . . 1 . . . . . . 2 . Recycling Units 4 | . 1 . . . 2 . . . . . . . . . . . . 1 . . . Scanalyzers 1 | . . . . . 1 . . . . . . . . . . . . . . . . Garrison Access 4 | . . . . . 1 1 . . . . 1 . . . . . . . . 1 . Total Hacks 102 | . 7 . 2 . 25 9 2 8 . . 7 . 4 . . . . 8 . 30 . Successful 61 | . 4 . 2 . 16 7 2 8 . . 4 . 2 . . . . 4 . 12 . Failed 41 | . 3 . . . 9 2 . . . . 3 . 2 . . . . 4 . 18 . Catastrophic 6 | . . . . . 1 1 . . . . 1 . . . . . . . . 3 . Database Lockouts . | . . . . . . . . . . . . . . . . . . . . . . Manual 130 | . 3 . 1 . 11 3 . . . . 13 . 7 23 16 . 23 4 . 23 3 Terminals 32 | . 6 . . . 19 7 . . . . . . . . . . . . . . . Fabricators 31 | . . . . . . . . . . . 6 . 2 . . . . 6 . 17 . Repair Stations 12 | . . . . . . . . . . . . . 2 . . . . . . 10 . Recycling Units 5 | . 1 . . . 2 . . . . . . . . . . . . 2 . . . Scanalyzers 3 | . . . . . 3 . . . . . . . . . . . . . . . . Garrison Access 7 | . . . . . 1 2 . . . . 1 . . . . . . . . 3 . Terminal Hacks 26 | . 2 . 2 . 7 5 2 8 . . . . . . . . . . . . . Record 8 | . . . 1 . . . 1 6 . . . . . . . . . . . . . Prototype ID Bank 5 | . 1 . . . 2 2 . . . . . . . . . . . . . . . Open Door 3 | . . . . . . . 1 2 . . . . . . . . . . . . . Branch Access Points 1 | . . . . . . 1 . . . . . . . . . . . . . . . Terminal Index 1 | . . . . . . 1 . . . . . . . . . . . . . . . Fabricator Index 1 | . . . . . . 1 . . . . . . . . . . . . . . . Alert Level 1 | . . . . . 1 . . . . . . . . . . . . . . . . Unreport Threat 1 | . . . . . 1 . . . . . . . . . . . . . . . . Locate Traps 2 | . 1 . . . 1 . . . . . . . . . . . . . . . . Patrol Status 1 | . . . . . 1 . . . . . . . . . . . . . . . . Hauler Manifests 1 | . . . . . 1 . . . . . . . . . . . . . . . . EX-Prototype ID Bank 1 | . . . 1 . . . . . . . . . . . . . . . . . . Fabricator Hacks 8 | . . . . . . . . . . . 2 . . . . . . 2 . 4 . Network Status 1 | . . . . . . . . . . . . . . . . . . . . 1 . Load Schematic 4 | . . . . . . . . . . . 1 . . . . . . 1 . 2 . Build 3 | . . . . . . . . . . . 1 . . . . . . 1 . 1 . Repair Station Hacks 5 | . . . . . . . . . . . . . 2 . . . . . . 3 . Scan Component 4 | . . . . . . . . . . . . . 1 . . . . . . 3 . Repair 1 | . . . . . . . . . . . . . 1 . . . . . . . . Recycling Unit Hacks 1 | . . . . . . . . . . . . . . . . . . 1 . . . Retrieve Components 1 | . . . . . . . . . . . . . . . . . . 1 . . . Scanalyzer 3 | . . . . . 3 . . . . . . . . . . . . . . . . Insert Component 1 | . . . . . 1 . . . . . . . . . . . . . . . . Analyze 2 | . . . . . 2 . . . . . . . . . . . . . . . . Garrison Access Hacks 2 | . . . . . 1 . . . . . 1 . . . . . . . . . . Seal Access 2 | . . . . . 1 . . . . . 1 . . . . . . . . . . Unauthorized Hacks 16 | . 2 . . . 5 2 . . . . 1 . . . . . . 1 . 5 . Terminals 5 | . 1 . . . 3 1 . . . . . . . . . . . . . . . Track 3 | . 1 . . . 2 . . . . . . . . . . . . . . . . Botnet 2 | . . . . . 1 1 . . . . . . . . . . . . . . . Fabricators 7 | . . . . . . . . . . . 1 . . . . . . 1 . 5 . Report 1 | . . . . . . . . . . . . . . . . . . . . 1 . Prioritize 2 | . . . . . . . . . . . . . . . . . . 1 . 1 . Siphon 1 | . . . . . . . . . . . . . . . . . . . . 1 . Haulers 3 | . . . . . . . . . . . 1 . . . . . . . . 2 . Repair Stations . | . . . . . . . . . . . . . . . . . . . . . . Recycling Units 3 | . 1 . . . 2 . . . . . . . . . . . . . . . . Tunnel 3 | . 1 . . . 2 . . . . . . . . . . . . . . . . Scanalyzers . | . . . . . . . . . . . . . . . . . . . . . . Garrison Access 1 | . . . . . . 1 . . . . . . . . . . . . . . . Jam 1 | . . . . . . 1 . . . . . . . . . . . . . . . Data Cores Recovered 1 | . . . . . . . . . . . . . . . . . . . . 1 . Used . | . . . . . . . . . . . . . . . . . . . . . . Hacking Detections 20 | . 2 . . . 6 3 . . . . 3 . 1 . . . . 1 . 4 . Full Trace Events . | . . . . . . . . . . . . . . . . . . . . . . Feedback Events . | . . . . . . . . . . . . . . . . . . . . . . Feedback Blocked . | . . . . . . . . . . . . . . . . . . . . . . Robot Schematics Acquired 3 | . . . . . . . . . . . . . . . . . 3 . . . . Robots Built . | . . . . . . . . . . . . . . . . . . . . . . Matter . | . . . . . . . . . . . . . . . . . . . . . . Time . | . . . . . . . . . . . . . . . . . . . . . . Total Robot Build Rating . | . . . . . . . . . . . . . . . . . . . . . . Part Schematics Acquired 80 | . . . . . 1 . . . . . 12 . . 14 26 . 15 . . 12 . Parts Built 3 | . . . . . . . . . . . 1 . . . . . . 1 . 1 . Matter 783 | . . . . . . . . . . . 285 . . . . . . 285 . 213 . Time 304 | . . . . . . . . . . . 76 . . . . . . 76 . 152 . Total Part Build Rating 15 | . . . . . . . . . . . 5 . . . . . . 5 . 5 . Parts Repaired 1 | . . . . . . . . . . . . . 1 . . . . . . . . Time 62 | . . . . . . . . . . . . . 62 . . . . . . . . Parts Recycled . | . . . . . . . . . . . . . . . . . . . . . . Recycled Matter . | . . . . . . . . . . . . . . . . . . . . . . Retrieved Matter . | . . . . . . . . . . . . . . . . . . . . . . Retrieved Components 2 | . . . . . . . . . . . . . . . . . . 2 . . . Parts Scanalyzed 1 | . . . . . 1 . . . . . . . . . . . . . . . . Part Schematics Acquired 1 | . . . . . 1 . . . . . . . . . . . . . . . . Parts Damaged . | . . . . . . . . . . . . . . . . . . . . . . Bothacking | -11 -10 -10 -10 -9 -8 -7 -7 -7 -7 -6 -6 -6 -6 -6 -6 -6 -6 -5 -5 -5 -4 ------------ Run | Scr Mat Min Exi Min Mat Fac Low Low Zio Pro Fac Was Fac Ext Cet Arc Hub Fac Was Fac Fac Used RIF Installer . | . . . . . . . . . . . . . . . . . . . . . . Robots Hacked 12 | . . . 4 . 2 . . . . . 1 . . 1 1 2 . 1 . . . Non-combat 9 | . . . 3 . 2 . . . . . 1 . . . . 2 . 1 . . . Combat 3 | . . . 1 . . . . . . . . . . 1 1 . . . . . . Robot Hacks Applied 13 | . . . 4 . 3 . . . . . 1 . . 1 1 2 . 1 . . . parse_system 8 | . . . 4 . 2 . . . . . . . . 1 1 . . . . . . find_chute 2 | . . . . . . . . . . . 1 . . . . . . 1 . . . find_recycling 1 | . . . . . 1 . . . . . . . . . . . . . . . . check_alert 2 | . . . . . . . . . . . . . . . . 2 . . . . . Relay Couplers Released 2 | . . . . . . . . . . . . . . . . . 2 . . . . Machine Destruction 2 | . . . . . . . . . . . . . . . . . 2 . . . . Robots Rewired 22 | . . . . . . . . . . 1 . . . 19 . . 1 . . 1 . Allies Hacked 2 | . . . . . . . . . . . . . . . . . 1 . . 1 . Hacks Repelled . | . . . . . . . . . . . . . . . . . . . . . . Allies | -11 -10 -10 -10 -9 -8 -7 -7 -7 -7 -6 -6 -6 -6 -6 -6 -6 -6 -5 -5 -5 -4 -------- Run | Scr Mat Min Exi Min Mat Fac Low Low Zio Pro Fac Was Fac Ext Cet Arc Hub Fac Was Fac Fac Total Allies 104 | . . 6 . 1 . . . . 4 1 5 19 4 34 5 . 1 . 19 3 2 Largest Group 23 | . . 6 6 4 1 . . . 4 4 4 18 17 23 14 9 7 . 19 15 2 Highest-Rated Group 913 | . . 113 113 71 16 . . . 152 152 112 650 591 913 857 593 541 . 696 544 206 Highest-Rated Ally 156 | . . 31 31 31 16 . . . 40 41 28 50 46 156 156 94 94 . 50 47 103 Zionite Dispatches 9 | . . . . . . . . . . . 2 . 2 2 . . . . . 2 1 Heavy 1 | . . . . . . . . . . . . . . . . . . . . . 1 Light 1 | . . . . . . . . . . . . . . 1 . . . . . . . Recon 1 | . . . . . . . . . . . . . 1 . . . . . . . . Fire 1 | . . . . . . . . . . . 1 . . . . . . . . . . Thermal Resupply 1 | . . . . . . . . . . . . . . 1 . . . . . . . Explosive Resupply 2 | . . . . . . . . . . . 1 . . . . . . . . 1 . Resource Resupply 1 | . . . . . . . . . . . . . . . . . . . . 1 . Defense Resupply 1 | . . . . . . . . . . . . . 1 . . . . . . . . Total Orders 31 | . . . 2 . . . . . . . 10 . 5 6 . . 6 . . 2 . STAY 13 | . . . 1 . . . . . . . 1 . 4 4 . . 2 . . 1 . ROAM 1 | . . . . . . . . . . . 1 . . . . . . . . . . FOLLOW 9 | . . . 1 . . . . . . . 4 . 1 2 . . 1 . . . . DROP 1 | . . . . . . . . . . . . . . . . . . . . 1 . EXPLORE 4 | . . . . . . . . . . . 3 . . . . . 1 . . . . RETURN 3 | . . . . . . . . . . . 1 . . . . . 2 . . . . Ally Attacks 844 | . . 14 . 32 1 . . . . 18 3 24 91 265 55 16 92 . 76 147 10 Total Damage 20631 | . . 176 . 291 . . . . . 666 43 409 1670 5898 1531 500 3029 . 2978 2811 629 Kills 137 | . . 4 . 7 . . . . . 5 1 2 14 38 14 4 29 . 7 10 2 Allies Corrupted 4 | . . . . . . . . . . 1 . . . . . . . . . 3 . Allies Melted 1 | . . . . . . . . . . . . . . . . . . . . 1 . Intel | -11 -10 -10 -10 -9 -8 -7 -7 -7 -7 -6 -6 -6 -6 -6 -6 -6 -6 -5 -5 -5 -4 ------- Run | Scr Mat Min Exi Min Mat Fac Low Low Zio Pro Fac Was Fac Ext Cet Arc Hub Fac Was Fac Fac Robot Analysis Total . | . . . . . . . . . . . . . . . . . . . . . . Derelict Logs Recovered 11 | . . 1 . 1 . . 3 2 2 2 . . . . . . . . . . . Drone Launches 4 | . . . . . . . . . . . 1 . . . . . 3 . . . . Drone Recoveries 4 | . . . . . . . . . . . 1 . . . . . 3 . . . . Zionite Intel Received 16 | . . . . . . . . . . . 1 . . 4 4 . 6 . . 1 . Guard Positions 1 | . . . . . . . . . . . . . . . 1 . . . . . . Prototype Stockpiles 2 | . . . . . . . . . . . . . . 1 . . 1 . . . . Component Schematics 3 | . . . . . . . . . . . . . . 1 1 . 1 . . . . Prototype Schematics 3 | . . . . . . . . . . . 1 . . . 1 . . . . 1 . Unaware Schematics 1 | . . . . . . . . . . . . . . . . . 1 . . . . Unaware Analyses 1 | . . . . . . . . . . . . . . . . . 1 . . . . Trap Installations 1 | . . . . . . . . . . . . . . 1 . . . . . . . Active Terminals 2 | . . . . . . . . . . . . . . 1 . . 1 . . . . Depthwide Sectors/0 1 | . . . . . . . . . . . . . . . . . 1 . . . . Depthwide Sectors/-1 1 | . . . . . . . . . . . . . . . 1 . . . . . . Exploration | -11 -10 -10 -10 -9 -8 -7 -7 -7 -7 -6 -6 -6 -6 -6 -6 -6 -6 -5 -5 -5 -4 ------------- Run | Scr Mat Min Exi Min Mat Fac Low Low Zio Pro Fac Was Fac Ext Cet Arc Hub Fac Was Fac Fac Turns Passed 27022 | 80 674 1022 1121 1151 2014 379 1450 1613 1837 1695 717 1015 1097 2153 697 1342 2437 770 776 2415 567 Spaces Moved 12638 | 44 370 552 559 546 795 210 879 981 981 986 343 370 522 1056 310 42 883 261 389 949 610 Core 643 | 4 . . . . . . . . . . . . . . . . . . . 111 528 Treads 3873 | 40 370 552 559 546 395 . . . . . . . . . 1 . . 191 389 830 . Legs 79 | . . . . . . . . . . . . . . . . . . . . . 79 Wheels 8040 | . . . . . 400 210 879 981 981 986 343 370 522 1056 309 42 883 70 . 8 . Hover . | . . . . . . . . . . . . . . . . . . . . . . Flight 3 | . . . . . . . . . . . . . . . . . . . . . 3 Fastest Speed 50 | 50 160 160 160 200 150 150 150 160 160 160 160 160 170 160 150 150 120 180 180 50 50 Average Speed 168 | 150 160 175 193 200 194 153 160 160 160 160 162 161 170 178 182 150 182 209 181 180 62 Slowest Speed 310 | 160 160 180 200 200 240 170 200 160 160 160 170 170 170 190 220 150 310 260 200 240 156 Overloaded Moves 1 | . . . . . . . . . . . . . . . . . . . . . 1 Propulsion Burnouts . | . . . . . . . . . . . . . . . . . . . . . . Robots Hopped 2 | . . . . . . . . . . . . . . . . . . . . . 2 Cave-ins Triggered . | . . . . . . . . . . . . . . . . . . . . . . Exploration Rate (%) 60 | 5 34 99 92 99 63 9 85 97 93 95 12 97 11 85 80 67 70 7 96 27 14 Regions Visited 21 Branch Regions 11 Pre-discovered Areas 22 | . 1 1 1 . 2 . . 1 2 . . . . . 4 . 10 . . . . Known Exits Taken 12 | . . 1 . . . 1 1 1 1 1 . . 1 1 1 1 1 . . 1 . Unknown Exits Taken 5 | 1 1 . 1 1 1 . . . . . . . . . . . . . . . . Scrap Searched 15 | . . 2 . 1 . . 2 5 2 3 . . . . . . . . . . . Spaces Dug 77 | . . . . 16 . 1 . . . 1 . 3 10 10 . . 17 . 1 18 . Terrain Destroyed 943 | . . 51 . 89 66 68 11 8 . 11 4 4 34 40 9 . 325 34 2 180 7 Melee 18 | . . . . 1 . 1 . . . . . . 7 . . . 9 . . . . Projectile 73 | . . . . 1 8 . 3 . . 3 . 4 7 . . . 25 2 2 11 7 AOE 852 | . . 51 . 87 58 67 8 8 . 8 4 . 20 40 9 . 291 32 . 169 . Terrain Rammed . | . . . . . . . . . . . . . . . . . . . . . . Walls Destroyed . | . . . . . . . . . . . . . . . . . . . . . . Machines Disabled . | . . . . . . . . . . . . . . . . . . . . . . Actions | -11 -10 -10 -10 -9 -8 -7 -7 -7 -7 -6 -6 -6 -6 -6 -6 -6 -6 -5 -5 -5 -4 --------- Run | Scr Mat Min Exi Min Mat Fac Low Low Zio Pro Fac Was Fac Ext Cet Arc Hub Fac Was Fac Fac Total 17038 | 55 428 598 595 585 1107 258 909 1008 1255 1046 490 698 662 1265 399 1313 1420 415 438 1379 715 Wait 2417 | . 18 20 . 2 87 1 . 1 245 2 104 257 55 72 27 1265 202 5 12 27 15 Move 12616 | 43 369 551 558 545 794 209 878 980 980 985 343 369 521 1055 309 41 882 261 388 948 607 Hop 1 | . . . . . . . . . . . . . . . . . . . . . 1 Pick Up 332 | 6 9 9 22 6 53 13 7 3 14 1 11 6 12 16 6 . 47 31 5 36 19 Fast Attach 114 | 6 3 . 1 1 4 . 1 1 . 1 . 1 . 5 7 . 15 8 1 27 32 Attach 113 | . . 2 . 1 5 4 1 . . . 3 1 2 1 . . 19 14 3 51 6 Detach 47 | . . . . . 1 . . 1 . 1 . 1 . 2 . . 11 5 2 22 1 Swap 285 | . 2 3 3 7 24 7 9 7 2 24 11 14 20 28 12 2 73 11 4 21 1 Drop 240 | . 9 3 6 7 29 15 7 6 14 2 9 4 11 16 12 . 21 17 10 38 4 Fire 738 | . 12 7 1 14 73 7 6 9 . 30 9 41 28 60 18 5 117 62 9 202 28 Melee 82 | . . . 4 1 11 2 . . . . . 4 12 1 8 . 33 1 4 1 . Ram 1 | . . . . . . . . . . . . . 1 . . . . . . . . Kick 1 | . . . . . . . . . . . . . . . . . . . . . 1 Crush 23 | . 6 3 . 1 8 . . . . . . . . . . . . . . 5 . Escape Stasis 8 | . . . . . . . . . . . . . . 8 . . . . . . . Rewire 2 | . . . . . . . . . . . . . . 1 . . . . . 1 . Trap 18 | . . . . . 18 . . . . . . . . . . . . . . . . Miscellaneous . | . . . . . . . . . . . . . . . . . . . . . . Route ------- -11/Scrapyard -10/Materials -10/Mines (discovered 3 exits: [*Mat x2] / *Exi) -10/Exiles (discovered 2 exits: [*Min x2]) -9/Mines (discovered 2 exits: *Mat x2) -8/Materials (discovered 2 exits: *Fac x2) -7/Factory (discovered 4 exits: Sto x2 / *Low x2) -7/Lower Caves -7/Lower Caves (discovered 2 exits: *Fac / *Zio) -7/Zion -6/Proximity Caves -6/Factory (discovered 4 exits: Fac / Low / Ext x2) -6/Waste -6/Factory -6/Extension (discovered 3 exits: *Fac x2 / *Cet) -6/Cetus (discovered 2 exits: *Fac / *Arc) -6/Archives -6/Hub_04(d) (discovered 2 exits: *Fac x2) -5/Factory -5/Waste -5/Factory -4/Factory History --------- Turn | Location | Event 10 | -11/Scrapyard | Discovered new exit (range 14) 81 | -11/Scrapyard | Entered Materials 310 | -10/Materials | Build established: Mutant 356 | -10/Materials | Discovered new exit (range 16) 755 | -10/Materials | Entered Mines 760 | -10/Mines | Identified exit to Exiles 780 | -10/Mines | Escorted by a lone wolf Derelict 800 | -10/Mines | Learned location of Storage (-7) 1040 | -10/Mines | Discovered new exit (range 3) 1309 | -10/Mines | Assisted by bots powering up and referring to "LRC-V3" 1347 | -10/Mines | Discovered new exit (range 9) 1749 | -10/Mines | Deemed a non-threat by the Exiles lab entrance 1777 | -10/Mines | Entered Exiles 1777 | -10/Exiles | Accompanied by 6 allies 1807 | -10/Exiles | Led the pair of lost Derelicts to a safe place 1824 | -10/Exiles | Discovered new exit (range 14) 1880 | -10/Exiles | Met 8R-AWN 1911 | -10/Exiles | Met EX-HEX 2111 | -10/Exiles | Met EX-DEC 2188 | -10/Exiles | Visited The Gauntlet 2273 | -10/Exiles | Build established: Hauler-Mutant 2435 | -10/Exiles | Learned location of Zion (-7) 2473 | -10/Exiles | Met EX-BIN 2517 | -10/Exiles | Aligned with FarCom system 2519 | -10/Exiles | Given EX-Vault access code 2565 | -10/Exiles | Opened EX-Vault 2576 | -10/Exiles | Found AWS/Autocannon 2618 | -10/Exiles | Warned to stay clear of 0b10 Research branches 2777 | -10/Exiles | Discovered new exit (range 14) 2850 | -10/Exiles | Attacked by the Exiles 2898 | -10/Exiles | Entered Mines 2898 | -9/Mines | Accompanied by 3 allies 2899 | -9/Mines | Met a Derelict testing a Signal Generator 2899 | -9/Mines | Assembled infested the area 2905 | -9/Mines | Found Signal Generator 2939 | -9/Mines | Met a Derelict shopkeep closing up shop 3028 | -9/Mines | Discovered new exit (range 9) 3633 | -9/Mines | Found a damaged Exp. Sensor Array with a note attached 3637 | -9/Mines | Found Prototype Device 3798 | -9/Mines | Discovered new exit (range 9) 4049 | -9/Mines | Entered Materials 4049 | -8/Materials | Accompanied by 1 ally 4049 | -8/Materials | Evolved 4 slots: Utility x4 4759 | -8/Materials | Identified Exp. Sensor Array 5041 | -8/Materials | Discovered new exit (range 9) 5640 | -8/Materials | Discovered new exit (range 15) 6063 | -8/Materials | Entered Factory 6063 | -7/Factory | Evolved 2 slots: Power x2 6248 | -7/Factory | Identified exit to Storage 6248 | -7/Factory | Identified exit to Lower Caves 6442 | -7/Factory | Entered Lower Caves 6492 | -7/Lower Caves | Learned Factory security intel 6938 | -7/Lower Caves | Learned Factory terminal intel 7080 | -7/Lower Caves | Identified exit to Lower Caves 7084 | -7/Lower Caves | Learned Armory garrison access intel 7191 | -7/Lower Caves | Encountered a Warlord checkpoint 7892 | -7/Lower Caves | Entered another Lower Caves area 7932 | -7/Lower Caves | Discovered new exit (range 13) 7955 | -7/Lower Caves | Identified exit to Factory 7966 | -7/Lower Caves | Learned 12 Factory zone layouts 8144 | -7/Lower Caves | Learned location of Armory (-3) 8144 | -7/Lower Caves | Learned Factory emergency access door positions 8144 | -7/Lower Caves | Learned Factory terminal intel 8144 | -7/Lower Caves | Learned Armory terminal intel 8144 | -7/Lower Caves | Learned Extension garrison access intel 8486 | -7/Lower Caves | Encountered a Warlord checkpoint 9210 | -7/Lower Caves | Discovered new exit (range 15) 9242 | -7/Lower Caves | Identified exit to Zion 9505 | -7/Lower Caves | Entered Zion 9591 | -7/Zion | Found CR-A16's Pointy Stick 9619 | -7/Zion | Discovered new exit (range 16) 9641 | -7/Zion | Identified exit to Proximity Caves 9717 | -7/Zion | System corruption cleaned by Quarantine Array 9755 | -7/Zion | Learned location of Recycling (-7) 9885 | -7/Zion | Found Prototype Processor 9888 | -7/Zion | Found Prototype Processor 9893 | -7/Zion | Found Prototype Processor 9941 | -7/Zion | Identified Exp. Armor Integrity Analyzer (x2) 9950 | -7/Zion | Found Prototype Processor 10112 | -7/Zion | Found Prototype Processor 10118 | -7/Zion | Identified Exp. Melee Analysis Suite (x2) 10127 | -7/Zion | Found Prototype Processor 10148 | -7/Zion | Identified Exp. Target Analyzer (x2) 10412 | -7/Zion | Imprinted 10414 | -7/Zion | Declared Zion's savior 10564 | -7/Zion | Learned Factory interactive machine intel 10628 | -7/Zion | Learned 8 Factory zone layouts 10753 | -7/Zion | Given the Hacking Drone Bay 10766 | -7/Zion | Found Prototype Device 10793 | -7/Zion | Learned Factory emergency access door positions 11279 | -7/Zion | Visited the Megawrench Repair Shop 11279 | -7/Zion | Megawrench repaired 10 parts 11342 | -7/Zion | Entered Proximity Caves 11342 | -6/Proximity Caves | Accompanied by 4 allies 11353 | -6/Proximity Caves | P-60 Hacker assimilated allied V8-915(M) 11467 | -6/Proximity Caves | Identified Hacking Drone Bay 11877 | -6/Proximity Caves | Learned location of 1 exit from Factory 11887 | -6/Proximity Caves | Learned 4 Factory zone layouts 11921 | -6/Proximity Caves | Discovered exit to Factory (range 4) 12213 | -6/Proximity Caves | Attracted the attention of an 0b10 checkpoint 13037 | -6/Proximity Caves | Entered Factory 13037 | -6/Factory | Evolved 2 slots: Utility x2 13038 | -6/Factory | Identified exit to Lower Caves 13039 | -6/Factory | Identified exit to Extension 13040 | -6/Factory | Identified exit to Factory 13043 | -6/Factory | Loaded intel: 48 interactive machine locations 13044 | -6/Factory | Loaded intel: 22 terminal locations 13481 | -6/Factory | Fabricated Exp. Sensor Array (x1) 13614 | -6/Factory | Retrieved Zion intel report: Prototype Schematics 13615 | -6/Factory | Zion Explosive Resupply teleported in 13725 | -6/Factory | Found Prototype Launcher 13737 | -6/Factory | Zion Fire squad teleported in 13737 | -6/Factory | First assault squad dispatched 13754 | -6/Factory | Sucked down chute 13754 | -6/Factory | Entered Waste 13755 | -6/Waste | Met a frightened Derelict 13760 | -6/Waste | Identified Scatter Rocket Array 13817 | -6/Waste | Spotted C-40 Crusher 13829 | -6/Waste | Allies destroyed C-40 Crusher 13838 | -6/Waste | Destroyed C-40 Crusher 13854 | -6/Waste | Destroyed C-40 Crusher 13860 | -6/Waste | Allies destroyed C-40 Crusher 13874 | -6/Waste | Destroyed C-40 Crusher 13875 | -6/Waste | 4 allies followed down the chute 13883 | -6/Waste | Spotted C-40 Crusher 13975 | -6/Waste | Destroyed C-40 Crusher 14102 | -6/Waste | Warlord forces began an assault 14255 | -6/Waste | Discovered new exit (range 16) 14380 | -6/Waste | Found Damper Plating 14403 | -6/Waste | Found Damper Plating 14488 | -6/Waste | Identified exit to Factory 14769 | -6/Waste | Entered Factory 14769 | -6/Factory | Accompanied by 16 allies 14771 | -6/Factory | Loaded intel: 20 terminal locations 14862 | -6/Factory | Repaired Hyp. Mass Driver? 15054 | -6/Factory | Allied Derelicts emerged from ambush trap array 15063 | -6/Factory | Zion Defense Resupply teleported in 15591 | -6/Factory | Zion Recon squad teleported in 15845 | -6/Factory | Discovered exit to Extension (range 13) 15866 | -6/Factory | Entered Extension 16025 | -6/Extension | Rescued a captive Derelict 16025 | -6/Extension | Rescued a captive Derelict 16050 | -6/Extension | Retrieved Zion intel report: Trap Installations 16051 | -6/Extension | Zion Thermal Resupply teleported in 16136 | -6/Extension | Rescued a captive Derelict 16137 | -6/Extension | Rescued a captive Derelict 16408 | -6/Extension | Retrieved Zion intel report: Component Schematics 16409 | -6/Extension | Zion Light squad teleported in 16464 | -6/Extension | Rescued a captive Derelict 16465 | -6/Extension | Rescued a captive Derelict 16761 | -6/Extension | Retrieved Zion intel report: Active Terminals 16969 | -6/Extension | Retrieved Zion intel report: Prototype Stockpiles 16983 | -6/Extension | Energy Cycler disabled 16984 | -6/Extension | Rescued A7 16984 | -6/Extension | Rescued a captive Derelict 16984 | -6/Extension | Rescued a captive Derelict 16985 | -6/Extension | Rescued a captive Derelict 16985 | -6/Extension | Rescued a captive Derelict 16987 | -6/Extension | Rescued a captive Derelict 16992 | -6/Extension | Rescued a captive Derelict 17121 | -6/Extension | Terminal network hard line cut 17418 | -6/Extension | Spotted B-75 Beast 17424 | -6/Extension | Allies destroyed B-75 Beast 17427 | -6/Extension | Discovered exit to Factory (range 12) 17934 | -6/Extension | Discovered exit to Factory (range 10) 17936 | -6/Extension | Discovered new exit (range 6) 17937 | -6/Extension | Disrupted transfer network 18007 | -6/Extension | Identified exit to Cetus 18019 | -6/Extension | Entered Cetus 18019 | -6/Cetus | Accompanied by 11 allies (A7) 18024 | -6/Cetus | Acquired a Cetus Manufacturing Module code from A7 18046 | -6/Cetus | Spotted Cetus Guard 18046 | -6/Cetus | Spotted Cetus Guard 18052 | -6/Cetus | Allies destroyed Cetus Guard 18052 | -6/Cetus | Spotted Cetus Guard 18052 | -6/Cetus | Spotted Cetus Guard 18055 | -6/Cetus | Destroyed Cetus Guard 18058 | -6/Cetus | Destroyed Cetus Guard 18059 | -6/Cetus | Allies destroyed Cetus Guard 18157 | -6/Cetus | Started Cetus Manufacturing Module 18182 | -6/Cetus | Manufactured an Enhanced Grunt 18207 | -6/Cetus | Manufactured an Enhanced Grunt 18208 | -6/Cetus | Retrieved Zion intel report: Depthwide Sectors/-1 18214 | -6/Cetus | Retrieved Zion intel report: Prototype Schematics 18232 | -6/Cetus | Manufactured an Enhanced Grunt 18257 | -6/Cetus | Manufactured an Enhanced Grunt 18258 | -6/Cetus | Retrieved Zion intel report: Component Schematics 18282 | -6/Cetus | Manufactured an Enhanced Grunt 18305 | -6/Cetus | Retrieved Zion intel report: Guard Positions 18450 | -6/Cetus | Escorted A7 to Cetus Mainframe 18482 | -6/Cetus | Discovered new exit (range 15) 18531 | -6/Cetus | Spotted Cetus Guard 18531 | -6/Cetus | Spotted Cetus Guard 18534 | -6/Cetus | Spotted Cetus Guard 18537 | -6/Cetus | Allies destroyed Cetus Guard 18537 | -6/Cetus | Spotted Cetus Guard 18544 | -6/Cetus | Destroyed Cetus Guard 18546 | -6/Cetus | Allies destroyed Cetus Guard 18547 | -6/Cetus | Allies destroyed Cetus Guard 18589 | -6/Cetus | Destroyed A7 18594 | -6/Cetus | Extracted ID and sensor layout for unrecognized location from A7's data core 18597 | -6/Cetus | Found Med. Regenerative Plating 18628 | -6/Cetus | Discovered exit to Factory (range 16) 18638 | -6/Cetus | Scared off Revision 17 18700 | -6/Cetus | Identified exit to Archives 18716 | -6/Cetus | Entered Archives 18716 | -6/Archives | Accompanied by 9 allies 20021 | -6/Archives | Discovered new exit (range 16) 20045 | -6/Archives | Identified exit to Hub_04(d) 20058 | -6/Archives | Entered Hub_04(d) 20058 | -6/Hub_04(d) | Accompanied by 7 allies 20060 | -6/Hub_04(d) | Discovered exit to Factory (range 10) 20232 | -6/Hub_04(d) | Discovered exit to Factory (range 12) 20285 | -6/Hub_04(d) | Retrieved Zion intel report: Active Terminals 20455 | -6/Hub_04(d) | Retrieved Zion intel report: Unaware Analyses 20598 | -6/Hub_04(d) | Retrieved Zion intel report: Prototype Stockpiles 20682 | -6/Hub_04(d) | Disrupted transfer network 20719 | -6/Hub_04(d) | Spotted B-75 Beast 20863 | -6/Hub_04(d) | Lost 6 parts (2p1n2u1w) 20868 | -6/Hub_04(d) | Destroyed B-75 Beast 21108 | -6/Hub_04(d) | First assault squad dispatched 21127 | -6/Hub_04(d) | Retrieved Zion intel report: Component Schematics 21185 | -6/Hub_04(d) | Destroyed 7 combat bots 21211 | -6/Hub_04(d) | Garrison activated, responded to threat 21334 | -6/Hub_04(d) | Retrieved Zion intel report: Depthwide Sectors/0 21380 | -6/Hub_04(d) | Retrieved Zion intel report: Unaware Schematics 21390 | -6/Hub_04(d) | Garrison activated, responded to threat 21416 | -6/Hub_04(d) | Terminal network hard line cut 21545 | -6/Hub_04(d) | Destroyed 13 combat bots 21605 | -6/Hub_04(d) | Network Hub disabled 21648 | -6/Hub_04(d) | Spotted Lightning 21654 | -6/Hub_04(d) | Spotted Lightning 21665 | -6/Hub_04(d) | Spotted Lightning 21673 | -6/Hub_04(d) | Spotted Lightning 21673 | -6/Hub_04(d) | Spotted Lightning 21675 | -6/Hub_04(d) | Spotted Lightning 21684 | -6/Hub_04(d) | Destroyed Lightning 21687 | -6/Hub_04(d) | Destroyed Lightning 21704 | -6/Hub_04(d) | Destroyed Lightning 21716 | -6/Hub_04(d) | Destroyed Lightning 21720 | -6/Hub_04(d) | Destroyed Lightning 21724 | -6/Hub_04(d) | Destroyed Lightning 21814 | -6/Hub_04(d) | Network Hub disabled 21877 | -6/Hub_04(d) | Found Prototype Device 21884 | -6/Hub_04(d) | Found Prototype Device 21946 | -6/Hub_04(d) | Identified EM Dispersion Field 21986 | -6/Hub_04(d) | Found Exp. Targeting Computer 21989 | -6/Hub_04(d) | Identified Exp. Phase Shifter 22088 | -6/Hub_04(d) | Found Prototype Energy Cannon 22113 | -6/Hub_04(d) | Found Prototype Energy Cannon 22185 | -6/Hub_04(d) | Spotted Lightning 22186 | -6/Hub_04(d) | Spotted Lightning 22189 | -6/Hub_04(d) | Spotted Lightning 22190 | -6/Hub_04(d) | Spotted Lightning 22192 | -6/Hub_04(d) | Spotted Lightning 22194 | -6/Hub_04(d) | Spotted Lightning 22200 | -6/Hub_04(d) | System corruption reached 10% 22202 | -6/Hub_04(d) | Destroyed Lightning 22219 | -6/Hub_04(d) | Destroyed Lightning 22225 | -6/Hub_04(d) | Destroyed Lightning 22244 | -6/Hub_04(d) | Destroyed Lightning 22275 | -6/Hub_04(d) | Destroyed Lightning 22284 | -6/Hub_04(d) | High security lockdown imminent 22305 | -6/Hub_04(d) | Destroyed 14 combat bots 22348 | -6/Hub_04(d) | Network Hub disabled 22364 | -6/Hub_04(d) | High security lockdown engaged 22384 | -6/Hub_04(d) | Network Hub disabled 22458 | -6/Hub_04(d) | Destroyed 18 combat bots 22471 | -6/Hub_04(d) | Lost 3 parts (1n1u1w) 22495 | -6/Hub_04(d) | Entered Factory 22495 | -5/Factory | Evolved 2 slots: Propulsion x1, Utility x1 22568 | -5/Factory | Garrison activated, responded to threat 22795 | -5/Factory | First assault squad dispatched 22938 | -5/Factory | Fabricated Exp. Signal Interpreter? 22948 | -5/Factory | Identified EMDS (x2) 23008 | -5/Factory | Lost 3 parts (1n2u) 23024 | -5/Factory | Destroyed 8 combat bots 23207 | -5/Factory | Build established: Scavenger-Mutant 23265 | -5/Factory | Sucked down chute 23265 | -5/Factory | Entered Waste 23306 | -5/Waste | Warlord forces began an assault 23315 | -5/Waste | Destroyed C-40 Crusher 23327 | -5/Waste | Spotted C-40 Crusher 23332 | -5/Waste | Allies destroyed C-40 Crusher 23332 | -5/Waste | Spotted C-40 Crusher 23334 | -5/Waste | Allies destroyed C-40 Crusher 23345 | -5/Waste | Spotted C-40 Crusher 23345 | -5/Waste | Allies destroyed C-40 Crusher 23372 | -5/Waste | Found Damper Plating 23375 | -5/Waste | Spotted C-40 Crusher 23384 | -5/Waste | Allies destroyed C-40 Crusher 23542 | -5/Waste | Discovered new exit (range 10) 23968 | -5/Waste | Found Damper Plating 24041 | -5/Waste | Entered Factory 24041 | -5/Factory | Accompanied by 15 allies 24065 | -5/Factory | Spotted B-75 Beast 24077 | -5/Factory | Allies destroyed B-75 Beast 24641 | -5/Factory | First assault squad dispatched 24676 | -5/Factory | Zion Explosive Resupply teleported in 24831 | -5/Factory | Found Imp. Powered Armor 24920 | -5/Factory | Discovered new exit (range 15) 24946 | -5/Factory | Identified exit to Factory 24982 | -5/Factory | Fabricated Exp. Signal Interpreter? 25165 | -5/Factory | Build established: Hauler-Mutant 25334 | -5/Factory | Retrieved Zion intel report: Prototype Schematics 25335 | -5/Factory | Zion Resource Resupply teleported in 25623 | -5/Factory | Terminal network hard line cut 25882 | -5/Factory | High security lockdown imminent 25962 | -5/Factory | High security lockdown engaged 26119 | -5/Factory | Destroyed 19 combat bots 26230 | -5/Factory | Destroyed 7 combat bots 26303 | -5/Factory | Lost 3 parts (1p1n1u) 26309 | -5/Factory | Destroyed 17 combat bots 26380 | -5/Factory | Core integrity fell below 50% 26389 | -5/Factory | Released all parts (7) 26390 | -5/Factory | System corruption reached 10% 26395 | -5/Factory | Core integrity fell below 20% 26414 | -5/Factory | Lost 17 parts (3p4n5u5w) 26456 | -5/Factory | Entered another Factory area 26456 | -4/Factory | Evolved 2 slots: Propulsion x1, Weapon x1 26496 | -4/Factory | Zion Heavy squad teleported in 26571 | -4/Factory | High security lockdown imminent 26616 | -4/Factory | Found Prototype Protection 26616 | -4/Factory | Identified Zio. Weapon Casing 26651 | -4/Factory | High security lockdown engaged 26784 | -4/Factory | Released all parts (16) 26962 | -4/Factory | Core integrity fell below 50% 27021 | -4/Factory | Core integrity fell below 20% 27023 | -4/Factory | Destroyed by G-73 Enforcer with Phase Gun Last Messages --------------- 27007_ G-67 Veteran unfolds itself. 27007_ L-61 Swordsman unfolds itself. 27007_ E-15 Imp unfolds itself. 27010_ Acquired 17 matter. 27014_ Flexi-carbon Leg blown off. 27014_ E-15 Imp destroyed. 27014_ C-30 ARC bursts open, deploying its payload. 27014_ G-73 Enforcer unfolds itself. 27014_ G-67 Veteran unfolds itself. 27014_ B-60 Warrior unfolds itself. 27015_ Acquired Flexi-carbon Leg. 27018_ C-30 ARC bursts open, deploying its payload. 27018_ G-73 Enforcer unfolds itself. 27018_ G-67 Veteran unfolds itself. 27018_ I-47 Archangel unfolds itself. 27018_ Flexi-carbon Leg destroyed. 27019_ C-30 ARC bursts open, deploying its payload. 27019_ P-70 Sage unfolds itself. 27019_ E-15 Imp unfolds itself. 27020_ E-15 Imp destroyed. Map ----- +----------------------------------------------------+ | ?????????????????????????????????????????????????? | | ?????????????????????????????????????????????????? | | ?????????????????????????????????????????????????? | | ?????????????????????????????????????????????????? | | ?????????????????????????????????????????????????? | | ?????????????????????????????????????????????????? | | ????????????????????????????????????????????????"" | | ????????????????????????????????????????????????"" | | ????????????????????????????????????? ????????? " | | ???????????????????????? ???????????? ??????" " | | ?????????????????????? ??????????? ???????" " | | ??????????????????? ??????????? % ??????? | | ?????????????????? ????????####/#########"# | | ??????????????????? ????????# " | | ???????????????????? ????????# | | ????????????????????# ????????# | | ????????????????????# ????????# | | ????????????????????# #???????# =%* | | ????????????????????# #???????# #?#####=[# | | ????????????????????# i######### b #???#[ !! | | ????????????????????# %%g m #???# [*!! | | ????????????????????# p ggp g %#####!=] * | | ????????????????????+ pg e %! /%[=%%/!%%!! | | ????????????????????# !=#####=[! * | | ????????????????????# #???#[!![ | | ????????????????????# @###########+#/#####[[!! | | ????????????????????# #????# #*[ | | ????????????????????# #????# ###### | | ????????????????????# #????# !!! #????? | | ????????????????????# #????# !!! ###### | | ????????????????????# #????# """" !! # | | ????????????????????# #????# """" # " " | | ????????????????????# #????# """" # " " | | ????????????????????# #????# """" # " " | | ????????????????????# ?????# ???"" # " " | | ????????????????????+ ?????#?????" # " " | | ????????????????????# ???????????" # " " | | ????????????????????# ??????????? # " " | | ????????????????????# ???????????######## " " | | ????????????????????? ??????????????????# " " | | ??????????????????????? ??????????????????# | | ????????????????????????????????????????????#= | | ????????????????????????????????????????????###### | | ?????????????????????????????????????????????????? | | ?????????????????????????????????????????????????? | | ?????????????????????????????????????????????????? | | ?????????????????????????????????????????????????? | | ?????????????????????????????????????????????????? | | ?????????????????????????????????????????????????? | | ?????????????????????????????????????????????????? | +----------------------------------------------------+ Best States ------------- Heat Dissipation 124 Energy Generation 65 Energy Capacity 850 Matter Stores 300 Matter Capacity 300 Sight Range 16 Robot Scan Range 30 Terrain Scan Density 10 Jamming Range 12 Additional Mass Support 16 Armor Coverage 2400 Resistance: KI 30 Resistance: TH 25 Resistance: EM 90 Weapon Shielding 100 Reclamation Efficiency 20 Phase Shifting 20 Evasion (%) 60 Launcher Accuracy 30 Armor Integrity Analysis 90 Recoil Reduction 3 Offensive Hacking 14 Item Schematics ----------------- Exp. Sensor Array | -8/Materials | Scanalyzed Cold Fusion Reactor | -6/Factory | Z-intel Exp. Signal Interpreter | -6/Factory | Z-intel Hvy. Particle Gun | -6/Factory | Z-intel Imp. Spread Laser | -6/Factory | Z-intel Imp. Heavy Laser | -6/Factory | Z-intel Gravity Neutralizing Apparatus | -6/Factory | Z-intel Mni. Assault Cannon | -6/Factory | Z-intel Adv. EMP Blaster | -6/Factory | Z-intel Antimatter Cannon | -6/Factory | Z-intel Aerolev Unit | -6/Factory | Z-intel Cld. Plasma Cannon | -6/Factory | Z-intel Imp. Heavy Machine Gun | -6/Factory | Z-intel Proton Cannon | -6/Extension | Z-intel Hvy. Flak Cannon | -6/Extension | Z-intel Imp. Targeting Computer | -6/Extension | Z-intel Hardlight Generator | -6/Extension | Z-intel Kinecellerator | -6/Extension | Z-intel Lyr. Medium Armor Plating | -6/Extension | Z-intel Med. Treads | -6/Extension | Z-intel Lrg. Matter Pod | -6/Extension | Z-intel Cesium-ion Thruster | -6/Extension | Z-intel Deuterium Engine | -6/Extension | Z-intel Transmission Jammer | -6/Extension | Z-intel Hpw. Shock Rifle | -6/Extension | Z-intel Reflective Plating | -6/Extension | Z-intel Armor Integrity Analyzer | -6/Extension | Z-intel Imp. VTOL Module | -6/Cetus | Z-intel Exp. Terrain Scanner | -6/Cetus | Z-intel Cld. Pulse Rifle | -6/Cetus | Z-intel Imp. Lightning Gun | -6/Cetus | Z-intel Prc. Assault Rifle | -6/Cetus | Z-intel Exp. Utility Shielding | -6/Cetus | Z-intel Exp. Power Shielding | -6/Cetus | Z-intel Hvy. EM Shotgun | -6/Cetus | Z-intel Imp. Cesium-ion Thruster | -6/Cetus | Z-intel Biomechanical Wings | -6/Cetus | Z-intel Phase Cannon | -6/Cetus | Z-intel Imp. Cryofiber Web | -6/Cetus | Z-intel System Guard | -6/Cetus | Z-intel Imp. Hacking Suite | -6/Cetus | Z-intel Lyr. Light Armor Plating | -6/Cetus | Z-intel Imp. Particle Charger | -6/Cetus | Z-intel Shield Generator | -6/Cetus | Z-intel Imp. Cooling System | -6/Cetus | Z-intel Com. Matter Pod | -6/Cetus | Z-intel Axe | -6/Cetus | Z-intel Drone Bay | -6/Cetus | Z-intel Imp. Titanium Leg | -6/Cetus | Z-intel System Backup Module | -6/Cetus | Z-intel Gauss Cannon | -6/Cetus | Z-intel Nuclear Pulse Thruster | -6/Cetus | Z-intel Hacking Suite | -6/Cetus | Z-intel Plasma Cannon | -6/Hub_04(d) | Z-intel Pulse Rifle | -6/Hub_04(d) | Z-intel Adv. Melee Analysis Suite | -6/Hub_04(d) | Z-intel Component Analysis Suite | -6/Hub_04(d) | Z-intel Coolant Injector | -6/Hub_04(d) | Z-intel Magnetic Acceleration Cannon | -6/Hub_04(d) | Z-intel Adv. Weight Redist. System | -6/Hub_04(d) | Z-intel Imp. Medium Treads | -6/Hub_04(d) | Z-intel Imp. Thermal Generator | -6/Hub_04(d) | Z-intel Flail | -6/Hub_04(d) | Z-intel Lrg. Storage Unit | -6/Hub_04(d) | Z-intel Lgt. Deuterium Engine | -6/Hub_04(d) | Z-intel Cloaking Device | -6/Hub_04(d) | Z-intel Hvy. Missile Launcher | -6/Hub_04(d) | Z-intel Hvy. Pick | -6/Hub_04(d) | Z-intel Cld. Nuclear Pulse Thruster | -5/Factory | Z-intel Prc. Matter Filter | -5/Factory | Z-intel Hvy. Proton Missile Launcher | -5/Factory | Z-intel Imp. Thermal Defense Suite | -5/Factory | Z-intel Plasma Sword | -5/Factory | Z-intel Enh. Armored Leg | -5/Factory | Z-intel Exp. Optical Array | -5/Factory | Z-intel Cld. Aerolev Unit | -5/Factory | Z-intel Prc. Rocket Launcher | -5/Factory | Z-intel F-cell Engine | -5/Factory | Z-intel Kinetic Spear | -5/Factory | Z-intel Cld. Fission Core | -5/Factory | Z-intel Robot Schematics ------------------ A-02 Transporter | -6/Hub_04(d) | Z-intel G-47 Trooper | -6/Hub_04(d) | Z-intel K-01 Serf | -6/Hub_04(d) | Z-intel Fabricated ------------ Exp. Sensor Array | x1 | -6/Factory Exp. Signal Interpreter | x1 | -5/Factory Exp. Signal Interpreter | x1 | -5/Factory Alien Tech Used ----------------- None Achievements -------------- None Challenges ------------ None Game ------ Seed CoordinationHugeKatana Manual? 0 Play Time 05:02:11 Cumulative 1354.9 hours Start 2021.05.05 @ 18:43:53 End 2021.05.06 @ 22:30:04 Sessions 3 Manual Loads 0 Difficulty Rogue Special Mode Halloween2020/ForbiddenLore Game No. 422 Rogue 422 Adventurer 0 Explorer 0 Win Type - Total 264 Types 216/7/15/4/3/2/15/1/1 Lore% 99 Gallery% 99 Achievement% 95 Wizard Run 0 Options --------- ASCII 0 Keyboard 0 Movement Numpad Keybinds 0 Fullscreen 0 Font 16/Smallcaps Map View 76x50 Tactical HUD 1 Map Filters NONE Filters NONE Steam 1 RUN: 3e4cea9a-d3b0-4531-bb66-48b4fe2b7714